[Event "Titled Tuesday Blitz August 22 Early 2023"]
[White "Ahmad, Khagan"]
[Black "Reprintsev, Alexander"]
[WhiteFideId "13431552"]
[BlackFideId "14100541"]
[WhiteElo "2606"]
[BlackElo "2495"]
[Result "0-1"]
[Round "10"]
[TimeControl "180+1"]
[Date "2023.08.22"]
[WhiteClock "0:00:06"]
[BlackClock "0:00:14"]
[Board "72"]

1. e4 {[%clk 0:03:00]}  d5 {[%clk 0:02:49]} 2. exd5 {[%clk 0:03:00]}  Qxd5 {[%clk 0:02:48]} 3. Nc3 {[%clk 0:03:00]}  Qd6 {[%clk 0:02:48]} 4. d4 {[%clk 0:03:00]}  c6 {[%clk 0:02:48]} 5. Nf3 {[%clk 0:03:00]}  Bf5 {[%clk 0:02:48]} 6. Bc4 {[%clk 0:02:56]}  e6 {[%clk 0:02:44]} 7. Qe2 {[%clk 0:02:49]}  Nf6 {[%clk 0:02:42]} 8. O-O {[%clk 0:02:44]}  Be7 {[%clk 0:02:40]} 9. Bg5 {[%clk 0:02:36]}  Nbd7 {[%clk 0:02:36]} 10. Rad1 {[%clk 0:02:36]}  O-O {[%clk 0:02:35]} 11. Ne5 {[%clk 0:02:35]}  Nb6 {[%clk 0:02:32]} 12. Bb3 {[%clk 0:02:34]}  h6 {[%clk 0:02:28]} 13. Bf4 {[%clk 0:02:34]}  Qd8 {[%clk 0:02:28]} 14. Bg3 {[%clk 0:02:21]}  Bh7 {[%clk 0:02:23]} 15. Rfe1 {[%clk 0:02:15]}  Nbd5 {[%clk 0:02:20]} 16. Nxd5 {[%clk 0:02:09]}  cxd5 {[%clk 0:02:20]} 17. c4 {[%clk 0:02:09]}  dxc4 {[%clk 0:02:20]} 18. Bxc4 {[%clk 0:02:10]}  a6 {[%clk 0:02:15]} 19. Nxf7 {[%clk 0:02:05]}  Kxf7 {[%clk 0:01:14]} 20. Qxe6+ {[%clk 0:01:58]}  Ke8 {[%clk 0:01:14]} 21. Bd6 {[%clk 0:01:45]}  Ng8 {[%clk 0:01:12]} 22. d5 {[%clk 0:00:27]}  Rf6 {[%clk 0:01:07]} 23. Bxe7 {[%clk 0:00:19]}  Rxe6 {[%clk 0:01:06]} 24. Rxe6 {[%clk 0:00:17]}  Nxe7 {[%clk 0:01:03]} 25. d6 {[%clk 0:00:18]}  Bg8 {[%clk 0:00:51]} 26. Rxe7+ {[%clk 0:00:13]}  Qxe7 {[%clk 0:00:51]} 27. dxe7 {[%clk 0:00:13]}  Bxc4 {[%clk 0:00:51]} 28. b3 {[%clk 0:00:11]}  Be6 {[%clk 0:00:50]} 29. Rc1 {[%clk 0:00:11]}  Rc8 {[%clk 0:00:46]} 30. Re1 {[%clk 0:00:11]}  Kxe7 {[%clk 0:00:46]} 31. f4 {[%clk 0:00:12]}  Kf6 {[%clk 0:00:44]} 32. Re2 {[%clk 0:00:11]}  Rc3 {[%clk 0:00:43]} 33. Rd2 {[%clk 0:00:09]}  Ke7 {[%clk 0:00:42]} 34. Kf2 {[%clk 0:00:09]}  g6 {[%clk 0:00:41]} 35. h3 {[%clk 0:00:09]}  h5 {[%clk 0:00:40]} 36. Re2 {[%clk 0:00:07]}  h4 {[%clk 0:00:37]} 37. Kg1 {[%clk 0:00:05]}  a5 {[%clk 0:00:34]} 38. Kh2 {[%clk 0:00:05]}  b6 {[%clk 0:00:32]} 39. Re5 {[%clk 0:00:02]}  Kf6 {[%clk 0:00:32]} 40. Rb5 {[%clk 0:00:03]}  Rc6 {[%clk 0:00:30]} 41. a4 {[%clk 0:00:02]}  Rd6 {[%clk 0:00:28]} 42. b4 {[%clk 0:00:03]}  Bd7 {[%clk 0:00:24]} 43. Re5 {[%clk 0:00:03]}  axb4 {[%clk 0:00:23]} 44. Re4 {[%clk 0:00:04]}  Bxa4 {[%clk 0:00:21]} 45. Rxb4 {[%clk 0:00:04]}  Bd7 {[%clk 0:00:20]} 46. f5 {[%clk 0:00:05]}  Bxf5 {[%clk 0:00:20]} 47. Rxh4 {[%clk 0:00:05]}  b5 {[%clk 0:00:20]} 48. Rb4 {[%clk 0:00:06]}  Bd3 {[%clk 0:00:20]} 49. g4 {[%clk 0:00:06]}  Bc4 {[%clk 0:00:20]} 50. Kg3 {[%clk 0:00:06]}  Rd3+ {[%clk 0:00:20]} 51. Kf4 {[%clk 0:00:06]}  g5+ {[%clk 0:00:20]} 52. Ke4 {[%clk 0:00:06]}  Rxh3 {[%clk 0:00:20]} 53. Rb2 {[%clk 0:00:06]}  Rg3 {[%clk 0:00:19]} 54. Rf2+ {[%clk 0:00:06]}  Kg6 {[%clk 0:00:20]} 55. Ke5 {[%clk 0:00:06]}  Rxg4 {[%clk 0:00:19]} 56. Rf6+ {[%clk 0:00:06]}  Kg7 {[%clk 0:00:20]} 57. Rb6 {[%clk 0:00:06]}  Rf4 {[%clk 0:00:19]} 58. Rb7+ {[%clk 0:00:07]}  Rf7 {[%clk 0:00:19]} 59. Rb6 {[%clk 0:00:07]}  g4 {[%clk 0:00:19]} 60. Ra6 {[%clk 0:00:08]}  g3 {[%clk 0:00:18]} 61. Ra3 {[%clk 0:00:09]}  Kf8 {[%clk 0:00:14]} 62. Rxg3 {[%clk 0:00:09]}  Ke7 {[%clk 0:00:14]} 63. Kd4 {[%clk 0:00:08]}  Kd6 {[%clk 0:00:14]} 64. Rg6+ {[%clk 0:00:08]}  Kc7 {[%clk 0:00:14]} 65. Kc5 {[%clk 0:00:07]}  Kb7 {[%clk 0:00:14]} 66. Rb6+ {[%clk 0:00:07]}  Ka7 {[%clk 0:00:14]} 67. Rh6 {[%clk 0:00:08]}  Rb7 {[%clk 0:00:14]} 68. Kb4 {[%clk 0:00:08]}  Re7 {[%clk 0:00:14]} 69. Ka5 {[%clk 0:00:07]}  Kb7 {[%clk 0:00:14]} 70. Rb6+ {[%clk 0:00:07]}  Kc7 {[%clk 0:00:15]} 71. Rh6 {[%clk 0:00:08]}  Re3 {[%clk 0:00:15]} 72. Rh7+ {[%clk 0:00:07]}  Kd6 {[%clk 0:00:15]} 73. Rh6+ {[%clk 0:00:06]}  Kc5 {[%clk 0:00:15]} 74. Rh5+ {[%clk 0:00:06]}  Kd4 {[%clk 0:00:16]} 75. Rh4+ {[%clk 0:00:04]}  Kc3 {[%clk 0:00:16]} 76. Rh1 {[%clk 0:00:04]}  Re2 {[%clk 0:00:15]} 77. Rc1+ {[%clk 0:00:04]}  Rc2 {[%clk 0:00:15]} 78. Rb1 {[%clk 0:00:04]}  Ra2+ {[%clk 0:00:15]} 79. Kb6 {[%clk 0:00:05]}  Rb2 {[%clk 0:00:14]} 80. Kc5 {[%clk 0:00:06]} 0-1


[Site "https://www.chess.com"]

[Event "Titled Tuesday Blitz August 22 Early 2023"]
[White "arenal72"]
[Black "Erzhanov, Arman"]
[BlackFideId "4138821"]
[WhiteElo "2502"]
[BlackElo "2598"]
[Result "1-0"]
[Round "10"]
[TimeControl "180+1"]
[Date "2023.08.22"]
[WhiteClock "0:00:05"]
[BlackClock "0:00:02"]
[Board "73"]

1. e4 {[%clk 0:03:00]}  d6 {[%clk 0:03:00]} 2. d4 {[%clk 0:03:00]}  Nf6 {[%clk 0:03:00]} 3. Nc3 {[%clk 0:03:00]}  c6 {[%clk 0:03:01]} 4. f4 {[%clk 0:02:58]}  d5 {[%clk 0:03:02]} 5. e5 {[%clk 0:02:58]}  Ng8 {[%clk 0:03:02]} 6. Nf3 {[%clk 0:02:57]}  h5 {[%clk 0:03:03]} 7. h3 {[%clk 0:02:53]}  Nh6 {[%clk 0:03:03]} 8. Bd3 {[%clk 0:02:50]}  Bf5 {[%clk 0:03:01]} 9. O-O {[%clk 0:02:49]}  e6 {[%clk 0:03:01]} 10. Ne2 {[%clk 0:02:46]}  Be7 {[%clk 0:03:00]} 11. c3 {[%clk 0:02:43]}  h4 {[%clk 0:02:59]} 12. Be3 {[%clk 0:02:40]}  Nd7 {[%clk 0:02:59]} 13. Bf2 {[%clk 0:02:40]}  Bxd3 {[%clk 0:02:58]} 14. Qxd3 {[%clk 0:02:41]}  Nf5 {[%clk 0:02:59]} 15. b4 {[%clk 0:02:37]}  g6 {[%clk 0:02:58]} 16. a4 {[%clk 0:02:37]}  Kf8 {[%clk 0:02:56]} 17. a5 {[%clk 0:02:34]}  Kg7 {[%clk 0:02:56]} 18. Rfb1 {[%clk 0:02:28]}  Qc7 {[%clk 0:02:55]} 19. Kh2 {[%clk 0:02:20]}  b6 {[%clk 0:02:51]} 20. g4 {[%clk 0:02:16]}  hxg3+ {[%clk 0:02:50]} 21. Nxg3 {[%clk 0:02:16]}  Nxg3 {[%clk 0:02:49]} 22. Kxg3 {[%clk 0:02:13]}  b5 {[%clk 0:02:22]} 23. h4 {[%clk 0:02:11]}  Rh5 {[%clk 0:02:21]} 24. Rh1 {[%clk 0:02:09]}  Rah8 {[%clk 0:02:22]} 25. Kg2 {[%clk 0:02:09]}  Qd8 {[%clk 0:02:22]} 26. Bg3 {[%clk 0:02:07]}  f6 {[%clk 0:02:21]} 27. Rag1 {[%clk 0:02:00]}  fxe5 {[%clk 0:02:21]} 28. fxe5 {[%clk 0:02:00]}  Rf5 {[%clk 0:02:07]} 29. Bf2 {[%clk 0:01:38]}  Qf8 {[%clk 0:02:06]} 30. Kf1 {[%clk 0:01:31]}  Rh6 {[%clk 0:02:00]} 31. Ke2 {[%clk 0:01:30]}  Qf7 {[%clk 0:01:55]} 32. Rh3 {[%clk 0:01:11]}  Nf8 {[%clk 0:01:48]} 33. Rhg3 {[%clk 0:00:55]}  Kh7 {[%clk 0:01:44]} 34. Rg4 {[%clk 0:00:49]}  Rhh5 {[%clk 0:01:44]} 35. Be1 {[%clk 0:00:41]}  Qg7 {[%clk 0:01:42]} 36. Bd2 {[%clk 0:00:37]}  Kg8 {[%clk 0:01:40]} 37. Bg5 {[%clk 0:00:37]}  Kf7 {[%clk 0:01:38]} 38. Bxe7 {[%clk 0:00:36]}  Kxe7 {[%clk 0:01:39]} 39. Rg5 {[%clk 0:00:36]}  Rhxg5 {[%clk 0:01:33]} 40. Rxg5 {[%clk 0:00:31]}  Rf4 {[%clk 0:01:28]} 41. Kd1 {[%clk 0:00:20]}  Qf7 {[%clk 0:01:27]} 42. Nd2 {[%clk 0:00:18]}  Rf2 {[%clk 0:01:23]} 43. Qg3 {[%clk 0:00:15]}  Kd7 {[%clk 0:01:18]} 44. h5 {[%clk 0:00:15]}  Rf5 {[%clk 0:00:45]} 45. h6 {[%clk 0:00:04]}  Rf2 {[%clk 0:00:41]} 46. Rg4 {[%clk 0:00:02]}  Qf5 {[%clk 0:00:38]} 47. Ke1 {[%clk 0:00:02]}  Rh2 {[%clk 0:00:11]} 48. Qxh2 {[%clk 0:00:02]}  Qxg4 {[%clk 0:00:12]} 49. h7 {[%clk 0:00:03]}  Nxh7 {[%clk 0:00:08]} 50. Qxh7+ {[%clk 0:00:04]}  Kc8 {[%clk 0:00:09]} 51. Qg8+ {[%clk 0:00:04]}  Kb7 {[%clk 0:00:08]} 52. Qf7+ {[%clk 0:00:05]}  Ka6 {[%clk 0:00:09]} 53. Qd7 {[%clk 0:00:05]}  Qh4+ {[%clk 0:00:09]} 54. Kd1 {[%clk 0:00:05]}  Qg4+ {[%clk 0:00:09]} 55. Kc2 {[%clk 0:00:05]}  Qf5+ {[%clk 0:00:09]} 56. Kb2 {[%clk 0:00:05]}  Qc2+ {[%clk 0:00:01]} 57. Kxc2 {[%clk 0:00:05]}  g5 {[%clk 0:00:02]} 58. Qc8# {[%clk 0:00:05]} 1-0


[Site "https://www.chess.com"]

[Event "Titled Tuesday Blitz August 22 Early 2023"]
[White "Yurovskykh, Oleksandr"]
[Black "Hirneise, Jens"]
[WhiteFideId "14134020"]
[BlackFideId "24614734"]
[WhiteElo "2588"]
[BlackElo "2493"]
[Result "1-0"]
[Round "10"]
[TimeControl "180+1"]
[Date "2023.08.22"]
[WhiteClock "0:00:15"]
[BlackClock "0:00:11"]
[Board "74"]

1. d4 {[%clk 0:03:00]}  Nf6 {[%clk 0:03:00]} 2. Nf3 {[%clk 0:02:59]}  b6 {[%clk 0:02:57]} 3. Bf4 {[%clk 0:02:57]}  Bb7 {[%clk 0:02:54]} 4. e3 {[%clk 0:02:55]}  e6 {[%clk 0:02:53]} 5. Bd3 {[%clk 0:02:53]}  d6 {[%clk 0:02:51]} 6. h3 {[%clk 0:02:52]}  Be7 {[%clk 0:02:51]} 7. Nbd2 {[%clk 0:02:52]}  O-O {[%clk 0:02:51]} 8. O-O {[%clk 0:02:51]}  Nbd7 {[%clk 0:02:51]} 9. Qe2 {[%clk 0:02:50]}  Re8 {[%clk 0:02:49]} 10. a4 {[%clk 0:02:46]}  a6 {[%clk 0:02:47]} 11. Bh2 {[%clk 0:02:42]}  Bf8 {[%clk 0:02:45]} 12. e4 {[%clk 0:02:07]}  e5 {[%clk 0:02:43]} 13. d5 {[%clk 0:02:07]}  Nh5 {[%clk 0:02:36]} 14. Nxe5 {[%clk 0:01:56]}  dxe5 {[%clk 0:02:28]} 15. Qxh5 {[%clk 0:01:56]}  Bc5 {[%clk 0:02:29]} 16. Kh1 {[%clk 0:01:51]}  g6 {[%clk 0:02:28]} 17. Qe2 {[%clk 0:01:50]}  Qh4 {[%clk 0:02:19]} 18. Bg3 {[%clk 0:01:46]}  Qg5 {[%clk 0:02:16]} 19. Kh2 {[%clk 0:01:29]}  Bd6 {[%clk 0:02:11]} 20. Nc4 {[%clk 0:01:28]}  Qe7 {[%clk 0:02:01]} 21. Nxd6 {[%clk 0:01:22]}  Qxd6 {[%clk 0:02:00]} 22. f3 {[%clk 0:01:21]}  g5 {[%clk 0:01:56]} 23. Bf2 {[%clk 0:01:20]}  Nf8 {[%clk 0:01:52]} 24. Be3 {[%clk 0:01:19]}  h6 {[%clk 0:01:49]} 25. Rfc1 {[%clk 0:01:17]}  Ng6 {[%clk 0:01:48]} 26. c4 {[%clk 0:01:16]}  Nf4 {[%clk 0:01:43]} 27. Qd2 {[%clk 0:01:16]}  c5 {[%clk 0:01:40]} 28. a5 {[%clk 0:01:12]}  Rec8 {[%clk 0:01:30]} 29. Bf1 {[%clk 0:01:07]}  Rab8 {[%clk 0:01:27]} 30. axb6 {[%clk 0:01:06]}  Qxb6 {[%clk 0:01:26]} 31. b4 {[%clk 0:01:07]}  Qxb4 {[%clk 0:01:24]} 32. Qxb4 {[%clk 0:01:07]}  cxb4 {[%clk 0:01:25]} 33. c5 {[%clk 0:01:07]}  Bxd5 {[%clk 0:01:14]} 34. exd5 {[%clk 0:01:06]}  Nxd5 {[%clk 0:01:15]} 35. Bf2 {[%clk 0:00:54]}  b3 {[%clk 0:01:15]} 36. Rcb1 {[%clk 0:00:51]}  b2 {[%clk 0:01:03]} 37. Ra3 {[%clk 0:00:47]}  a5 {[%clk 0:00:57]} 38. Bc4 {[%clk 0:00:45]}  Nf6 {[%clk 0:00:45]} 39. Rxa5 {[%clk 0:00:38]}  Rb4 {[%clk 0:00:45]} 40. Bd3 {[%clk 0:00:34]}  Nd5 {[%clk 0:00:44]} 41. Be1 {[%clk 0:00:24]}  Rd4 {[%clk 0:00:40]} 42. Be4 {[%clk 0:00:23]}  Nf6 {[%clk 0:00:38]} 43. Rxb2 {[%clk 0:00:22]}  Nxe4 {[%clk 0:00:38]} 44. fxe4 {[%clk 0:00:22]}  Rxe4 {[%clk 0:00:38]} 45. Bf2 {[%clk 0:00:21]}  Rc4 {[%clk 0:00:37]} 46. Raa2 {[%clk 0:00:20]}  f5 {[%clk 0:00:32]} 47. Rc2 {[%clk 0:00:20]}  Rxc2 {[%clk 0:00:31]} 48. Rxc2 {[%clk 0:00:21]}  Kf7 {[%clk 0:00:32]} 49. c6 {[%clk 0:00:21]}  Ke6 {[%clk 0:00:32]} 50. c7 {[%clk 0:00:21]}  e4 {[%clk 0:00:29]} 51. Bb6 {[%clk 0:00:18]}  Kd6 {[%clk 0:00:23]} 52. Rd2+ {[%clk 0:00:16]}  Kc6 {[%clk 0:00:24]} 53. Rd8 {[%clk 0:00:16]}  Kb7 {[%clk 0:00:23]} 54. Rxc8 {[%clk 0:00:16]}  Kxc8 {[%clk 0:00:24]} 55. g4 {[%clk 0:00:12]}  f4 {[%clk 0:00:23]} 56. Kg2 {[%clk 0:00:12]}  Kd7 {[%clk 0:00:18]} 57. Kf2 {[%clk 0:00:12]}  Kc8 {[%clk 0:00:18]} 58. Ba5 {[%clk 0:00:13]}  Kd7 {[%clk 0:00:17]} 59. Ke2 {[%clk 0:00:12]}  Kc8 {[%clk 0:00:15]} 60. Kd2 {[%clk 0:00:12]}  Kd7 {[%clk 0:00:15]} 61. Kc3 {[%clk 0:00:12]}  e3 {[%clk 0:00:14]} 62. Kd3 {[%clk 0:00:12]}  Kc8 {[%clk 0:00:14]} 63. Ke2 {[%clk 0:00:12]}  Kd7 {[%clk 0:00:14]} 64. Kf3 {[%clk 0:00:13]}  Kc8 {[%clk 0:00:14]} 65. Bc3 {[%clk 0:00:13]}  Kd7 {[%clk 0:00:15]} 66. Bg7 {[%clk 0:00:13]}  Kxc7 {[%clk 0:00:12]} 67. Bxh6 {[%clk 0:00:14]}  Kd6 {[%clk 0:00:11]} 68. Bxg5 {[%clk 0:00:14]}  Kd5 {[%clk 0:00:11]} 69. Bxf4 {[%clk 0:00:15]}  e2 {[%clk 0:00:12]} 70. Kxe2 {[%clk 0:00:15]}  Ke4 {[%clk 0:00:11]} 71. Bg3 {[%clk 0:00:15]} 1-0


[Site "https://www.chess.com"]

[Event "Titled Tuesday Blitz August 22 Early 2023"]
[White "Melnichuk, Mikhail"]
[Black "Aevengho"]
[WhiteFideId "14117533"]
[WhiteElo "2480"]
[BlackElo "2584"]
[Result "0-1"]
[Round "10"]
[TimeControl "180+1"]
[Date "2023.08.22"]
[WhiteClock "0:00:00"]
[BlackClock "0:00:04"]
[Board "76"]

1. Nf3 {[%clk 0:02:53]}  Nf6 {[%clk 0:02:59]} 2. d4 {[%clk 0:02:49]}  g6 {[%clk 0:03:00]} 3. c4 {[%clk 0:02:49]}  Bg7 {[%clk 0:03:00]} 4. Nc3 {[%clk 0:02:50]}  O-O {[%clk 0:03:01]} 5. e4 {[%clk 0:02:50]}  d6 {[%clk 0:03:02]} 6. Be2 {[%clk 0:02:51]}  Nbd7 {[%clk 0:03:02]} 7. O-O {[%clk 0:02:50]}  e5 {[%clk 0:03:03]} 8. Qc2 {[%clk 0:02:51]}  exd4 {[%clk 0:02:58]} 9. Nxd4 {[%clk 0:02:50]}  Re8 {[%clk 0:02:58]} 10. f3 {[%clk 0:02:50]}  c6 {[%clk 0:02:58]} 11. Rd1 {[%clk 0:02:47]}  Qe7 {[%clk 0:02:54]} 12. Bf4 {[%clk 0:02:41]}  Nh5 {[%clk 0:02:51]} 13. Be3 {[%clk 0:02:37]}  f5 {[%clk 0:02:21]} 14. Qd2 {[%clk 0:02:24]}  Nc5 {[%clk 0:02:06]} 15. Nb3 {[%clk 0:02:18]}  fxe4 {[%clk 0:01:51]} 16. Nxc5 {[%clk 0:01:19]}  exf3 {[%clk 0:01:26]} 17. Bg5 {[%clk 0:01:11]}  Qe5 {[%clk 0:01:11]} 18. Bxf3 {[%clk 0:00:39]}  dxc5 {[%clk 0:01:03]} 19. Kh1 {[%clk 0:00:32]}  Be6 {[%clk 0:00:54]} 20. Ne4 {[%clk 0:00:21]}  Bxc4 {[%clk 0:00:47]} 21. Nd6 {[%clk 0:00:15]}  Be6 {[%clk 0:00:07]} 22. Nxe8 {[%clk 0:00:12]}  Rxe8 {[%clk 0:00:08]} 23. Re1 {[%clk 0:00:09]}  Qxb2 {[%clk 0:00:08]} 24. Qxb2 {[%clk 0:00:08]}  Bxb2 {[%clk 0:00:09]} 25. Rab1 {[%clk 0:00:09]}  Bc3 {[%clk 0:00:09]} 26. Rec1 {[%clk 0:00:08]}  Bb4 {[%clk 0:00:08]} 27. Rd1 {[%clk 0:00:02]}  Ng7 {[%clk 0:00:06]} 28. Rbc1 {[%clk 0:00:02]}  Bxa2 {[%clk 0:00:05]} 29. Ra1 {[%clk 0:00:01]}  Bb3 {[%clk 0:00:05]} 30. Rdb1 {[%clk 0:00:00]}  Bd5 {[%clk 0:00:04]} 0-1


[Site "https://www.chess.com"]

[Event "Titled Tuesday Blitz August 22 Early 2023"]
[White "Santos Flores, Alberto"]
[Black "Liu, Casper"]
[WhiteFideId "3601234"]
[BlackFideId "1454153"]
[WhiteElo "2571"]
[BlackElo "2467"]
[Result "1-0"]
[Round "10"]
[TimeControl "180+1"]
[Date "2023.08.22"]
[WhiteClock "0:00:45"]
[BlackClock "0:01:00"]
[Board "78"]

1. e4 {[%clk 0:03:00]}  c5 {[%clk 0:02:58]} 2. Nf3 {[%clk 0:03:00]}  d6 {[%clk 0:02:59]} 3. Bb5+ {[%clk 0:02:59]}  Bd7 {[%clk 0:02:58]} 4. Bxd7+ {[%clk 0:02:59]}  Nxd7 {[%clk 0:02:59]} 5. c4 {[%clk 0:02:59]}  g6 {[%clk 0:02:56]} 6. d4 {[%clk 0:02:58]}  cxd4 {[%clk 0:02:56]} 7. Nxd4 {[%clk 0:02:59]}  Bg7 {[%clk 0:02:56]} 8. Nc3 {[%clk 0:02:59]}  Ngf6 {[%clk 0:02:56]} 9. Be3 {[%clk 0:02:58]}  O-O {[%clk 0:02:57]} 10. Rc1 {[%clk 0:02:57]}  a6 {[%clk 0:02:57]} 11. b3 {[%clk 0:02:55]}  Rc8 {[%clk 0:02:58]} 12. f3 {[%clk 0:02:53]}  Qa5 {[%clk 0:02:58]} 13. Qd2 {[%clk 0:02:50]}  Qh5 {[%clk 0:02:55]} 14. h4 {[%clk 0:02:34]}  Qe5 {[%clk 0:02:18]} 15. O-O {[%clk 0:02:04]}  Nh5 {[%clk 0:02:14]} 16. Nd5 {[%clk 0:01:56]}  Kh8 {[%clk 0:01:51]} 17. g4 {[%clk 0:01:45]}  e6 {[%clk 0:01:32]} 18. f4 {[%clk 0:01:19]}  Qxe4 {[%clk 0:01:31]} 19. Nc3 {[%clk 0:01:18]}  Nc5 {[%clk 0:01:24]} 20. Nxe4 {[%clk 0:01:17]}  Nxe4 {[%clk 0:01:25]} 21. Qg2 {[%clk 0:01:13]}  Nhg3 {[%clk 0:01:25]} 22. Rfd1 {[%clk 0:01:09]}  e5 {[%clk 0:01:17]} 23. Ne2 {[%clk 0:01:05]}  Nxe2+ {[%clk 0:01:15]} 24. Qxe2 {[%clk 0:01:05]}  f5 {[%clk 0:01:15]} 25. gxf5 {[%clk 0:01:02]}  Rxf5 {[%clk 0:01:14]} 26. Qd3 {[%clk 0:00:52]}  exf4 {[%clk 0:01:10]} 27. Bd4 {[%clk 0:00:47]}  Re8 {[%clk 0:01:00]} 28. Re1 {[%clk 0:00:45]} 1-0


[Site "https://www.chess.com"]

[Event "Titled Tuesday Blitz August 22 Early 2023"]
[White "Goldin, Roman"]
[Black "Ganiev, Roman"]
[WhiteFideId "2803860"]
[BlackFideId "4131452"]
[WhiteElo "2450"]
[BlackElo "2569"]
[Result "1-0"]
[Round "10"]
[TimeControl "180+1"]
[Date "2023.08.22"]
[WhiteClock "0:00:11"]
[BlackClock "0:00:00"]
[Board "79"]

1. e4 {[%clk 0:02:59]}  c5 {[%clk 0:02:55]} 2. Nf3 {[%clk 0:02:59]}  d6 {[%clk 0:02:56]} 3. Bc4 {[%clk 0:02:59]}  e6 {[%clk 0:02:55]} 4. O-O {[%clk 0:02:58]}  Nf6 {[%clk 0:02:54]} 5. d3 {[%clk 0:02:59]}  Nc6 {[%clk 0:02:53]} 6. a3 {[%clk 0:02:59]}  Be7 {[%clk 0:02:53]} 7. Ba2 {[%clk 0:02:59]}  O-O {[%clk 0:02:54]} 8. Nc3 {[%clk 0:03:00]}  Rb8 {[%clk 0:02:54]} 9. Ng5 {[%clk 0:03:00]}  h6 {[%clk 0:02:54]} 10. Nh3 {[%clk 0:03:00]}  e5 {[%clk 0:02:52]} 11. f4 {[%clk 0:03:00]}  Nd4 {[%clk 0:02:42]} 12. fxe5 {[%clk 0:02:48]}  dxe5 {[%clk 0:02:39]} 13. Nd5 {[%clk 0:02:48]}  Nxd5 {[%clk 0:02:36]} 14. Bxd5 {[%clk 0:02:47]}  Be6 {[%clk 0:02:31]} 15. c3 {[%clk 0:02:39]}  Bxd5 {[%clk 0:02:18]} 16. cxd4 {[%clk 0:02:04]}  Be6 {[%clk 0:02:10]} 17. d5 {[%clk 0:02:03]}  Bxh3 {[%clk 0:02:09]} 18. gxh3 {[%clk 0:02:04]}  f5 {[%clk 0:02:10]} 19. Qh5 {[%clk 0:01:52]}  f4 {[%clk 0:01:52]} 20. Qxe5 {[%clk 0:01:45]}  Bf6 {[%clk 0:01:45]} 21. Qe6+ {[%clk 0:01:45]}  Kh8 {[%clk 0:01:45]} 22. Bxf4 {[%clk 0:01:45]}  Bxb2 {[%clk 0:01:30]} 23. Bxb8 {[%clk 0:01:23]}  Bxa1 {[%clk 0:01:19]} 24. Rxf8+ {[%clk 0:00:51]}  Qxf8 {[%clk 0:01:17]} 25. Be5 {[%clk 0:00:50]}  Bxe5 {[%clk 0:00:17]} 26. Qxe5 {[%clk 0:00:50]}  Qf3 {[%clk 0:00:18]} 27. d6 {[%clk 0:00:20]}  Qe3+ {[%clk 0:00:15]} 28. Kg2 {[%clk 0:00:20]}  Qe2+ {[%clk 0:00:13]} 29. Kg3 {[%clk 0:00:19]}  Qe3+ {[%clk 0:00:12]} 30. Kg4 {[%clk 0:00:17]}  Qe2+ {[%clk 0:00:09]} 31. Kf5 {[%clk 0:00:14]}  Qxd3 {[%clk 0:00:10]} 32. Ke6 {[%clk 0:00:13]}  Qb3+ {[%clk 0:00:05]} 33. Ke7 {[%clk 0:00:12]}  c4 {[%clk 0:00:03]} 34. d7 {[%clk 0:00:12]}  Qxa3+ {[%clk 0:00:00]} 35. Qd6 {[%clk 0:00:11]} 1-0


[Site "https://www.chess.com"]

[Event "Titled Tuesday Blitz August 22 Early 2023"]
[White "Shukhman, Anna"]
[Black "Vivas Zamora, Fabian Ernesto"]
[WhiteFideId "54180058"]
[BlackFideId "3902480"]
[WhiteElo "2561"]
[BlackElo "2446"]
[Result "1-0"]
[Round "10"]
[TimeControl "180+1"]
[Date "2023.08.22"]
[WhiteClock "0:01:25"]
[BlackClock "0:00:00"]
[Board "80"]

1. e4 {[%clk 0:03:00]}  c5 {[%clk 0:02:11]} 2. Nf3 {[%clk 0:02:59]}  d6 {[%clk 0:02:11]} 3. d4 {[%clk 0:02:59]}  cxd4 {[%clk 0:02:11]} 4. Nxd4 {[%clk 0:03:00]}  Nf6 {[%clk 0:02:11]} 5. Nc3 {[%clk 0:03:00]}  g6 {[%clk 0:02:09]} 6. Be3 {[%clk 0:02:59]}  Bg7 {[%clk 0:02:10]} 7. f3 {[%clk 0:02:59]}  O-O {[%clk 0:02:10]} 8. Qd2 {[%clk 0:03:00]}  Nc6 {[%clk 0:02:11]} 9. g4 {[%clk 0:03:00]}  Be6 {[%clk 0:02:09]} 10. Nxe6 {[%clk 0:02:59]}  fxe6 {[%clk 0:02:10]} 11. O-O-O {[%clk 0:02:58]}  Ne5 {[%clk 0:01:58]} 12. Be2 {[%clk 0:02:58]}  Qc8 {[%clk 0:01:58]} 13. h4 {[%clk 0:02:58]}  Nc4 {[%clk 0:01:34]} 14. Bxc4 {[%clk 0:02:57]}  Qxc4 {[%clk 0:01:35]} 15. h5 {[%clk 0:02:57]}  b5 {[%clk 0:01:17]} 16. hxg6 {[%clk 0:02:53]}  hxg6 {[%clk 0:01:18]} 17. Bh6 {[%clk 0:02:46]}  b4 {[%clk 0:01:11]} 18. Bxg7 {[%clk 0:02:36]}  Kxg7 {[%clk 0:01:12]} 19. Qh6+ {[%clk 0:02:34]}  Kf7 {[%clk 0:01:12]} 20. Nb1 {[%clk 0:02:16]}  Rac8 {[%clk 0:00:50]} 21. Qd2 {[%clk 0:02:13]}  Qxa2 {[%clk 0:00:44]} 22. g5 {[%clk 0:02:04]}  Nh5 {[%clk 0:00:42]} 23. Qxb4 {[%clk 0:01:57]}  Rc4 {[%clk 0:00:29]} 24. Qa3 {[%clk 0:01:44]}  Qxa3 {[%clk 0:00:21]} 25. Nxa3 {[%clk 0:01:45]}  Rc5 {[%clk 0:00:19]} 26. Rhg1 {[%clk 0:01:34]}  Ke8 {[%clk 0:00:16]} 27. Rd3 {[%clk 0:01:32]}  Nf4 {[%clk 0:00:16]} 28. Re3 {[%clk 0:01:32]}  Nh3 {[%clk 0:00:16]} 29. Rg3 {[%clk 0:01:31]}  Nxg5 {[%clk 0:00:13]} 30. b4 {[%clk 0:01:30]}  Re5 {[%clk 0:00:05]} 31. Nc4 {[%clk 0:01:30]}  Nf7 {[%clk 0:00:02]} 32. Nxe5 {[%clk 0:01:29]}  Nxe5 {[%clk 0:00:03]} 33. Ra3 {[%clk 0:01:29]}  Nc6 {[%clk 0:00:01]} 34. b5 {[%clk 0:01:29]}  Nd4 {[%clk 0:00:01]} 35. Rxg6 {[%clk 0:01:25]}  Nxb5 {[%clk 0:00:01]} 36. Rb3 {[%clk 0:01:25]}  a6 {[%clk 0:00:00]} 37. c4 {[%clk 0:01:25]} 1-0


[Site "https://www.chess.com"]

[Event "Titled Tuesday Blitz August 22 Early 2023"]
[White "Willy, Stephen"]
[Black "Slovineanu, Viacheslav"]
[WhiteFideId "30981468"]
[BlackFideId "13900510"]
[WhiteElo "2554"]
[BlackElo "2402"]
[Result "1-0"]
[Round "10"]
[TimeControl "180+1"]
[Date "2023.08.22"]
[WhiteClock "0:00:53"]
[BlackClock "0:00:02"]
[Board "83"]

1. e4 {[%clk 0:03:00]}  c6 {[%clk 0:02:59]} 2. d4 {[%clk 0:02:58]}  d5 {[%clk 0:02:59]} 3. f3 {[%clk 0:02:58]}  dxe4 {[%clk 0:02:59]} 4. fxe4 {[%clk 0:02:59]}  e5 {[%clk 0:02:59]} 5. Nf3 {[%clk 0:02:59]}  Be6 {[%clk 0:02:59]} 6. Be3 {[%clk 0:02:48]}  Nd7 {[%clk 0:02:47]} 7. Nc3 {[%clk 0:02:25]}  Ngf6 {[%clk 0:02:43]} 8. Bd3 {[%clk 0:02:19]}  Bd6 {[%clk 0:02:22]} 9. Qd2 {[%clk 0:02:12]}  Qc7 {[%clk 0:02:18]} 10. O-O-O {[%clk 0:02:08]}  O-O-O {[%clk 0:02:14]} 11. h3 {[%clk 0:02:03]}  h6 {[%clk 0:02:13]} 12. d5 {[%clk 0:02:02]}  cxd5 {[%clk 0:02:11]} 13. Nb5 {[%clk 0:02:03]}  d4 {[%clk 0:01:53]} 14. Bxd4 {[%clk 0:01:45]}  exd4 {[%clk 0:01:49]} 15. Nxc7 {[%clk 0:01:44]}  Bxc7 {[%clk 0:01:46]} 16. Nxd4 {[%clk 0:01:43]}  Nc5 {[%clk 0:01:37]} 17. Nxe6 {[%clk 0:01:40]}  fxe6 {[%clk 0:01:22]} 18. Qe2 {[%clk 0:01:35]}  Rd4 {[%clk 0:01:04]} 19. Rhe1 {[%clk 0:01:29]}  Rhd8 {[%clk 0:01:02]} 20. Bc4 {[%clk 0:01:24]}  Nfxe4 {[%clk 0:00:44]} 21. Rxd4 {[%clk 0:01:16]}  Rxd4 {[%clk 0:00:44]} 22. Bd3 {[%clk 0:00:58]}  Bf4+ {[%clk 0:00:29]} 23. Kb1 {[%clk 0:00:57]}  Nd2+ {[%clk 0:00:28]} 24. Ka1 {[%clk 0:00:57]}  Rd6 {[%clk 0:00:21]} 25. Qf2 {[%clk 0:00:55]}  Nxd3 {[%clk 0:00:10]} 26. cxd3 {[%clk 0:00:54]}  g5 {[%clk 0:00:02]} 27. g3 {[%clk 0:00:53]} 1-0


[Site "https://www.chess.com"]